{"text_format":"3","workbook":"xlsx","n_sheets":1,"sheets":["CUSTOS DA REFORMA"],"not_rendered":{"images":2,"defined_names":4},"read":"whole","date_system":"1900"}

{"sheet":"CUSTOS DA REFORMA","index":0,"n_rows":28,"n_cols":8,"rows_kept":28,"merged":[[25,1,25,5],[26,1,26,5],[27,1,27,5]]}
[null,"Planilha de custos da reforma da cozinha"]
[]
[null,"Categoria","Itens","Quantidade","Custo estimado","Custo real","Custo total estimado","Custo total real"]
[null,"Armários","Armários inferiores: padrão modular (quantidade em metro linear)",25,{"v":5,"d":"R$ 5.00"},null,{"$f":"Dados[[#This Row],[Quantidade]]*Dados[[#This Row],[Custo estimado]]","v":{"v":125,"d":"R$ 125"}},{"$f":"Dados[[#This Row],[Quantidade]]*Dados[[#This Row],[Custo real]]","v":{"v":0,"d":"R$ 0"}}]
[null,"Armários","Armários superiores: padrão modular (quantidade em metro linear)",25,{"v":3.5,"d":"R$ 3.50"},null,{"$f":"Dados[[#This Row],[Quantidade]]*Dados[[#This Row],[Custo estimado]]","v":{"v":87.5,"d":"R$ 88"}},{"$f":"Dados[[#This Row],[Quantidade]]*Dados[[#This Row],[Custo real]]","v":{"v":0,"d":"R$ 0"}}]
[null,"Eletrodomésticos de limpeza","Máquina de lavar louça: padrão",1,{"v":250,"d":"R$ 250.00"},null,{"$f":"Dados[[#This Row],[Quantidade]]*Dados[[#This Row],[Custo estimado]]","v":{"v":250,"d":"R$ 250"}},{"$f":"Dados[[#This Row],[Quantidade]]*Dados[[#This Row],[Custo real]]","v":{"v":0,"d":"R$ 0"}}]
[null,"Eletrodomésticos de limpeza","Triturador de resíduos: padrão",1,{"v":175,"d":"R$ 175.00"},null,{"$f":"Dados[[#This Row],[Quantidade]]*Dados[[#This Row],[Custo estimado]]","v":{"v":175,"d":"R$ 175"}},{"$f":"Dados[[#This Row],[Quantidade]]*Dados[[#This Row],[Custo real]]","v":{"v":0,"d":"R$ 0"}}]
[null,"Eletrodomésticos para cozinhar","Fogão: padrão deslizante",1,{"v":375,"d":"R$ 375.00"},null,{"$f":"Dados[[#This Row],[Quantidade]]*Dados[[#This Row],[Custo estimado]]","v":{"v":375,"d":"R$ 375"}},{"$f":"Dados[[#This Row],[Quantidade]]*Dados[[#This Row],[Custo real]]","v":{"v":0,"d":"R$ 0"}}]
[null,"Eletrodomésticos para cozinhar","Microondas: padrão",1,{"v":300,"d":"R$ 300.00"},null,{"$f":"Dados[[#This Row],[Quantidade]]*Dados[[#This Row],[Custo estimado]]","v":{"v":300,"d":"R$ 300"}},{"$f":"Dados[[#This Row],[Quantidade]]*Dados[[#This Row],[Custo real]]","v":{"v":0,"d":"R$ 0"}}]
[null,"Balcões","Superfície sólida (quantidade em metro linear)",23,{"v":10,"d":"R$ 10.00"},null,{"$f":"Dados[[#This Row],[Quantidade]]*Dados[[#This Row],[Custo estimado]]","v":{"v":230,"d":"R$ 230"}},{"$f":"Dados[[#This Row],[Quantidade]]*Dados[[#This Row],[Custo real]]","v":{"v":0,"d":"R$ 0"}}]
[null,"Portas","Interior: base sólida revertida",1,{"v":65,"d":"R$ 65.00"},null,{"$f":"Dados[[#This Row],[Quantidade]]*Dados[[#This Row],[Custo estimado]]","v":{"v":65,"d":"R$ 65"}},{"$f":"Dados[[#This Row],[Quantidade]]*Dados[[#This Row],[Custo real]]","v":{"v":0,"d":"R$ 0"}}]
[null,"Extras","Extras: padrão de água quente instantânea",1,{"v":120,"d":"R$ 120.00"},null,{"$f":"Dados[[#This Row],[Quantidade]]*Dados[[#This Row],[Custo estimado]]","v":{"v":120,"d":"R$ 120"}},{"$f":"Dados[[#This Row],[Quantidade]]*Dados[[#This Row],[Custo real]]","v":{"v":0,"d":"R$ 0"}}]
[null,"Extras","Extras: repositório de sabão",1,{"v":40,"d":"R$ 40.00"},null,{"$f":"Dados[[#This Row],[Quantidade]]*Dados[[#This Row],[Custo estimado]]","v":{"v":40,"d":"R$ 40"}},{"$f":"Dados[[#This Row],[Quantidade]]*Dados[[#This Row],[Custo real]]","v":{"v":0,"d":"R$ 0"}}]
[null,"Torneiras","Torneira: alavanca, padrão",1,{"v":130,"d":"R$ 130.00"},null,{"$f":"Dados[[#This Row],[Quantidade]]*Dados[[#This Row],[Custo estimado]]","v":{"v":130,"d":"R$ 130"}},{"$f":"Dados[[#This Row],[Quantidade]]*Dados[[#This Row],[Custo real]]","v":{"v":0,"d":"R$ 0"}}]
[null,"Piso","Laminado (quantidade em metro quadrado)",165,{"v":3.5,"d":"R$ 3.50"},null,{"$f":"Dados[[#This Row],[Quantidade]]*Dados[[#This Row],[Custo estimado]]","v":{"v":577.5,"d":"R$ 578"}},{"$f":"Dados[[#This Row],[Quantidade]]*Dados[[#This Row],[Custo real]]","v":{"v":0,"d":"R$ 0"}}]
[null,"Eletrodomésticos para lavagem de roupa","Máquina de lavar: padrão",1,{"v":500,"d":"R$ 500.00"},null,{"$f":"Dados[[#This Row],[Quantidade]]*Dados[[#This Row],[Custo estimado]]","v":{"v":500,"d":"R$ 500"}},{"$f":"Dados[[#This Row],[Quantidade]]*Dados[[#This Row],[Custo real]]","v":{"v":0,"d":"R$ 0"}}]
[null,"Eletrodomésticos para lavagem de roupa","Máquina de secar: padrão",1,{"v":375,"d":"R$ 375.00"},null,{"$f":"Dados[[#This Row],[Quantidade]]*Dados[[#This Row],[Custo estimado]]","v":{"v":375,"d":"R$ 375"}},{"$f":"Dados[[#This Row],[Quantidade]]*Dados[[#This Row],[Custo real]]","v":{"v":0,"d":"R$ 0"}}]
[null,"Iluminação","Iluminação: embutida",4,{"v":35,"d":"R$ 35.00"},null,{"$f":"Dados[[#This Row],[Quantidade]]*Dados[[#This Row],[Custo estimado]]","v":{"v":140,"d":"R$ 140"}},{"$f":"Dados[[#This Row],[Quantidade]]*Dados[[#This Row],[Custo real]]","v":{"v":0,"d":"R$ 0"}}]
[null,"Geladeiras","Geladeira: independente, luxuosa",1,{"v":1200,"d":"R$ 1,200.00"},null,{"$f":"Dados[[#This Row],[Quantidade]]*Dados[[#This Row],[Custo estimado]]","v":{"v":1200,"d":"R$ 1,200"}},{"$f":"Dados[[#This Row],[Quantidade]]*Dados[[#This Row],[Custo real]]","v":{"v":0,"d":"R$ 0"}}]
[null,"Pias","Cuba dupla luxuosa de aço inoxidável",1,{"v":125,"d":"R$ 125.00"},null,{"$f":"Dados[[#This Row],[Quantidade]]*Dados[[#This Row],[Custo estimado]]","v":{"v":125,"d":"R$ 125"}},{"$f":"Dados[[#This Row],[Quantidade]]*Dados[[#This Row],[Custo real]]","v":{"v":0,"d":"R$ 0"}}]
[null,"Ventilação","Coifa: com cano padrão",1,{"v":180,"d":"R$ 180.00"},null,{"$f":"Dados[[#This Row],[Quantidade]]*Dados[[#This Row],[Custo estimado]]","v":{"v":180,"d":"R$ 180"}},{"$f":"Dados[[#This Row],[Quantidade]]*Dados[[#This Row],[Custo real]]","v":{"v":0,"d":"R$ 0"}}]
[null,"Paredes","Placa de gesso (quantidade em metro quadrado)",70,{"v":2,"d":"R$ 2.00"},null,{"$f":"Dados[[#This Row],[Quantidade]]*Dados[[#This Row],[Custo estimado]]","v":{"v":140,"d":"R$ 140"}},{"$f":"Dados[[#This Row],[Quantidade]]*Dados[[#This Row],[Custo real]]","v":{"v":0,"d":"R$ 0"}}]
[null,"Janelas","Deslizante",2,{"v":120,"d":"R$ 120.00"},null,{"$f":"Dados[[#This Row],[Quantidade]]*Dados[[#This Row],[Custo estimado]]","v":{"v":240,"d":"R$ 240"}},{"$f":"Dados[[#This Row],[Quantidade]]*Dados[[#This Row],[Custo real]]","v":{"v":0,"d":"R$ 0"}}]
[null,"Outros",{"$nulls":4},{"$f":"Dados[[#This Row],[Quantidade]]*Dados[[#This Row],[Custo estimado]]","v":{"v":0,"d":"R$ 0"}},{"$f":"Dados[[#This Row],[Quantidade]]*Dados[[#This Row],[Custo real]]","v":{"v":0,"d":"R$ 0"}}]
[null,"Total",null,null,{"$f":"SUBTOTAL(109,Dados[Custo estimado])","v":{"v":4014,"d":"R$ 4,014.00"}},{"$f":"SUBTOTAL(109,Dados[Custo real])","v":{"v":0,"d":"R$ 0.00"}},{"$f":"SUBTOTAL(109,Dados[Custo total estimado])","v":{"v":5375,"d":"R$ 5,375.00"}},{"$f":"SUBTOTAL(109,Dados[Custo total real])","v":{"v":0,"d":"R$ 0.00"}}]
[null,"Subtotal",{"$nulls":4},{"$f":"SUBTOTAL(109,Dados[Custo total estimado])","v":{"v":5375,"d":"R$ 5,375.00"}},{"$f":"SUBTOTAL(109,Dados[Custo total real])","v":{"v":0,"d":"R$ 0.00"}}]
[null,"Custos inesperados – mais 30%",{"$nulls":4},{"$f":"G26*0.3","v":{"v":1612.5,"d":"R$ 1,612.50"}},{"$f":"H26*0.3","v":{"v":0,"d":"R$ 0.00"}}]
[null,"Total",{"$nulls":4},{"$f":"SUM(G26:G27)","v":{"v":6987.5,"d":"R$ 6,987.50"}},{"$f":"SUM(H26:H27)","v":{"v":0,"d":"R$ 0.00"}}]